bitfinex/quotes_SOLUSD_20251119
["timestamp","ask_amount","ask_price","bid_price","bid_amount"]
[1763593913091,10.82166253,136.97,136.91,10.72166253]
[1763593913307,11.49166253,136.97,136.92,12.48166253]
[1763593913608,0.67,136.96,136.92,12.48166253]
[1763593913918,0.1,136.97,136.92,12.48166253]
[1763593914104,0.77,136.97,136.93,11.40166253]
[1763593914808,0.77,136.97,136.92,12.48166253]
[1763593914991,0.77,136.97,136.93,0.68]
[1763593915189,0.77,136.97,136.92,12.48166253]
[1763593915391,0.77,136.97,136.93,11.40166253]
[1763593916124,0.1,136.97,136.94,11.40166253]
[1763593916323,0.1,136.97,136.95,1.76]
[1763593916491,0.1,136.97,136.96,10.72166253]
[1763593916696,0.1,136.97,136.96,11.40166253]
[1763593918402,0.1,136.97,136.96,0.68]
[1763593918596,0.1,136.97,136.96,11.40166253]
[1763593918790,0.1,136.97,136.95,12.48166253]
[1763593919019,0.1,136.97,136.96,0.68]
[1763593919203,0.1,136.97,136.96,11.40166253]
[1763593919621,0.1,136.97,136.95,10.72166253]
[1763593919807,0.1,136.97,136.96,1.76]
[1763593920190,0.1,136.97,136.94,0.68]
[1763593920412,0.77,136.97,136.95,1.76]
[1763593920928,11.49166253,136.97,136.95,1.76]
[1763593921131,0.1,136.97,136.95,1.76]
[1763593921420,0.77,136.97,136.95,1.76]
[1763593922002,0.1,136.97,136.95,1.76]
[1763593922924,0.1,136.97,136.96,11.40166253]
[1763593923223,0.1,137.03,136.96,11.40166253]
[1763593923432,0.1,137.03,136.99,10.72166253]
[1763593923729,0.1,137.03,137.0,12.48166253]
[1763593924038,0.67,137.02,137.01,1.76]
[1763593924225,11.39166253,137.02,136.99,1.76]
[1763593924517,0.67,137.01,136.99,1.76]
[1763593924919,11.39166253,137.01,136.99,1.76]
[1763593925721,10.82166253,137.03,136.99,1.76]
[1763593925909,0.67,137.01,136.99,1.76]
[1763593926224,0.67,137.01,136.93,9.40882769]
[1763593926426,18.12096,136.96,136.89,0.68]
[1763593926634,10.72166253,136.9,136.89,0.68]
[1763593926996,11.30166253,136.9,136.89,0.68]
[1763593927197,18.12096,136.87,136.83,1.52]
[1763593927494,10.72166253,136.84,136.75,0.2]
[1763593927695,10.72166253,136.82,136.76,1.76]
[1763593928102,10.72166253,136.8,136.76,1.76]
[1763593928306,10.72166253,136.77,136.75,0.2]
[1763593928509,10.72166253,136.78,136.75,0.2]
[1763593928707,10.72166253,136.79,136.75,0.2]
[1763593929331,10.72166253,136.79,136.76,0.68]
[1763593930043,0.67,136.82,136.76,0.68]
[1763593930353,1.76,136.85,136.76,0.68]
[1763593930354,10.72166253,136.81,136.76,0.68]
[1763593930533,10.72166253,136.8,136.76,0.68]
[1763593931055,10.72166253,136.81,136.76,0.68]
[1763593931636,10.72166253,136.8,136.76,0.68]
[1763593933447,10.72166253,136.79,136.76,0.68]
[1763593934027,10.72166253,136.78,136.75,0.2]
[1763593934227,18.12096,136.85,136.75,0.2]
[1763593934228,10.72166253,136.77,136.75,0.2]
[1763593934540,10.72166253,136.76,136.75,0.2]
[1763593934930,11.39166253,136.76,136.75,0.2]
[1763593936039,13.15166253,136.76,136.75,0.2]
[1763593936622,22.94049022,136.76,136.75,0.2]
[1763593936845,18.40029572,136.76,136.75,0.2]
[1763593937221,23.27538283,136.76,136.75,0.2]
[1763593937422,18.40029572,136.76,136.75,0.2]
[1763593938021,29.44903098,136.76,136.75,0.2]
[1763593938245,18.12096,136.73,136.67,0.2]
[1763593938446,35.85125572,136.72,136.67,0.2]
[1763593938649,6.18146803,136.68,136.67,0.2]
[1763593938828,7.94146803,136.68,136.63,0.2]
[1763593939148,6.18146803,136.64,136.63,0.2]
[1763593940822,1.76,136.69,136.63,0.2]
[1763593941025,6.18146803,136.66,136.63,0.91]
[1763593941557,6.18146803,136.66,136.64,0.71]
[1763593941736,6.18146803,136.67,136.64,0.71]
[1763593941937,6.18146803,136.66,136.64,0.71]
[1763593942541,6.18146803,136.65,136.63,0.2]
[1763593942745,6.18146803,136.64,136.63,0.2]
[1763593944036,8.62146803,136.64,136.63,0.2]
[1763593944432,14.80293606,136.64,136.63,0.2]
[1763593945550,0.68,136.64,136.63,0.2]
[1763593945752,7.94146803,136.64,136.63,0.2]
[1763593945957,1.76,136.65,136.63,0.2]
[1763593946256,6.18146803,136.65,136.63,0.91]
[1763593946553,0.67,136.72,136.63,0.91]
[1763593946723,6.18146803,136.68,136.64,0.68]
[1763593947123,6.18146803,136.69,136.64,0.68]
[1763593947461,6.18146803,136.66,136.63,0.2]
[1763593947753,1.48,136.68,136.63,0.88]
[1763593947940,6.18146803,136.66,136.63,0.88]
[1763593948143,6.18146803,136.67,136.64,0.68]
[1763593948740,6.18146803,136.68,136.64,0.68]
[1763593949346,6.18146803,136.67,136.64,0.68]
[1763593950150,18.12096,136.71,136.64,0.68]
[1763593950367,6.18146803,136.71,136.65,6.18146803]
[1763593950660,10.98,136.73,136.66,6.86146803]
[1763593950951,6.18146803,136.73,136.67,6.86146803]
[1763593951171,6.18146803,136.73,136.67,14.17818694]
[1763593951327,6.18146803,136.74,136.68,8.48146803]
[1763593951856,6.18146803,136.75,136.69,6.86146803]
[1763593952382,6.18146803,136.74,136.7,0.68]
[1763593953552,6.18146803,136.73,136.7,0.68]
[1763593953776,6.18146803,136.72,136.68,1.62]
[1763593954258,0.67,136.71,136.65,2.44]
[1763593954459,0.67,136.75,136.64,9.78882769]
[1763593954655,6.18146803,136.68,136.65,0.68]
[1763593955595,0.1,136.72,136.65,6.86146803]
[1763593955748,6.18146803,136.7,136.65,0.68]
[1763593955953,0.1,136.72,136.66,0.68]
[1763593956176,6.18146803,136.72,136.66,6.86146803]
[1763593956360,6.18146803,136.73,136.67,6.18146803]
[1763593956559,0.64,136.74,136.67,6.86146803]
[1763593956775,6.18146803,136.73,136.68,0.68]
[1763593957172,6.18146803,136.72,136.68,0.68]
[1763593959490,1.76,136.77,136.69,7.66146803]
[1763593959705,6.18146803,136.75,136.7,0.68]
[1763593959989,6.18146803,136.76,136.7,6.86146803]
[1763593960377,6.18146803,136.76,136.71,0.68]
[1763593960563,6.18146803,136.73,136.71,0.68]
[1763593960765,6.18146803,136.74,136.71,0.68]
[1763593962270,0.67,136.76,136.71,0.68]
[1763593962457,6.18146803,136.74,136.71,0.68]
[1763593963402,4.80731658,136.77,136.71,0.68]
[1763593963558,6.18146803,136.77,136.71,6.86146803]
[1763593963758,6.18146803,136.77,136.71,14.17614196]
[1763593963964,6.18146803,136.77,136.72,0.68]
[1763593964277,6.18146803,136.76,136.72,0.68]
[1763593964475,4.8237195,136.77,136.73,0.68]
[1763593964672,18.12096,136.78,136.73,0.68]
[1763593964673,6.18146803,136.76,136.73,0.68]
[1763593965058,4.824851,136.77,136.73,0.68]
[1763593965280,6.18146803,136.76,136.73,0.68]
[1763593965981,11.00631903,136.77,136.73,0.68]
[1763593966366,6.18146803,136.78,136.73,6.86146803]
[1763593966595,11.01217098,136.79,136.74,0.68]
[1763593967189,6.18146803,136.78,136.74,0.68]
[1763593967368,11.01217098,136.79,136.74,0.68]
[1763593968063,6.18146803,136.78,136.74,0.68]
[1763593968468,4.83070295,136.77,136.74,0.68]
[1763593969281,4.83070295,136.78,136.74,0.68]
[1763593969472,4.85481271,136.77,136.74,0.68]
[1763593969667,6.18146803,136.78,136.74,0.68]
[1763593969876,4.85479144,136.77,136.74,0.68]
[1763593970084,6.18146803,136.79,136.74,0.68]
[1763593970270,4.85479101,136.78,136.74,0.68]
[1763593970464,4.85479101,136.77,136.74,0.68]
[1763593970677,4.85479101,136.76,136.74,0.68]
[1763593970862,6.18146803,136.79,136.74,0.68]
[1763593971071,4.86493178,136.78,136.74,0.68]
[1763593971282,4.86493178,136.78,136.72,0.67]
[1763593971283,11.04639981,136.77,136.72,0.67]
[1763593971477,10.998237,136.76,136.72,6.85146803]
[1763593971789,4.86493178,136.75,136.73,6.18146803]
[1763593971992,6.18146803,136.78,136.73,6.85146803]
[1763593972192,6.18146803,136.78,136.74,0.67]
[1763593972387,6.18146803,136.77,136.74,0.67]
[1763593972992,6.18146803,136.77,136.71,6.84146803]
[1763593973167,6.18146803,136.77,136.72,2.43]
[1763593973563,6.18146803,136.77,136.73,0.67]
[1763593973992,4.87712669,136.8,136.74,6.18146803]
[1763593974196,6.18146803,136.79,136.74,6.18146803]
[1763593974389,6.18146803,136.79,136.75,0.67]
[1763593975300,6.18146803,136.78,136.73,0.67]
[1763593975672,6.18146803,136.77,136.73,0.67]
[1763593976106,5.58397108,136.79,136.69,0.67]
[1763593976107,6.18146803,136.74,136.69,0.67]
[1763593976277,6.18146803,136.76,136.7,6.85146803]
[1763593976476,7.24397108,136.78,136.7,0.67]
[1763593976682,6.18146803,136.76,136.71,0.67]
[1763593976878,4.88397108,136.78,136.72,6.18146803]
[1763593977083,24.30242803,136.79,136.73,6.18146803]
[1763593977287,18.12096,136.79,136.74,0.67]
[1763593977605,6.18146803,136.77,136.74,0.67]
[1763593977779,11.06883819,136.78,136.74,0.67]
[1763593978205,6.18146803,136.78,136.74,0.67]
[1763593978994,6.18146803,136.77,136.74,0.67]
[1763593980303,11.07157919,136.78,136.74,0.67]
[1763593980503,6.18146803,136.79,136.74,0.67]
[1763593980691,6.18146803,136.8,136.74,6.85146803]
[1763593980884,11.07080663,136.81,136.75,6.18146803]
[1763593981084,11.07080663,136.81,136.75,6.85146803]
[1763593981284,11.07080663,136.81,136.76,0.67]
[1763593981485,6.80496385,136.87,136.79,6.18146803]
[1763593981685,6.18146803,136.86,136.8,6.85146803]
[1763593981889,6.18146803,136.88,136.82,6.18146803]
[1763593982102,0.7,136.89,136.82,6.18146803]
[1763593982308,4.88644021,136.91,136.86,6.18146803]
[1763593982490,11.06790824,136.94,136.88,6.18146803]
[1763593982692,6.18146803,136.94,136.88,6.18146803]
[1763593982891,11.06790824,136.94,136.89,0.67]
[1763593983402,0.62,136.95,136.89,0.67]
[1763593983716,6.18146803,136.95,136.89,6.85146803]
[1763593984114,6.18146803,136.95,136.9,6.85146803]
[1763593984599,6.88146803,136.95,136.9,6.85146803]
[1763593984786,6.88146803,136.95,136.9,0.67]
[1763593985187,6.18146803,136.95,136.9,6.85146803]
[1763593985391,24.30242803,136.96,136.9,8.57146803]
[1763593985621,6.18146803,136.96,136.91,0.67]
[1763593985990,6.88146803,136.96,136.91,0.67]
[1763593987691,6.18146803,136.96,136.91,0.67]
[1763593987886,0.7,136.95,136.91,0.67]
[1763593988315,6.18146803,136.96,136.91,0.67]
[1763593988503,6.88146803,136.96,136.91,0.67]
[1763593989017,0.7,136.98,136.92,6.18146803]
[1763593989223,6.18146803,136.97,136.92,6.18146803]
[1763593989512,6.18146803,136.97,136.92,6.85146803]
[1763593989689,7.94146803,136.99,136.93,6.85146803]
[1763593990095,6.18146803,137.0,136.94,6.85146803]
[1763593990408,6.18146803,137.0,136.95,6.85146803]
[1763593990713,1.78,137.01,136.95,0.67]
[1763593990714,19.90096,137.01,136.95,0.67]
[1763593990892,6.18146803,136.97,136.93,0.67]
[1763593991092,6.18146803,136.97,136.93,1.71]
[1763593991293,6.18146803,136.95,136.9,1.22]
[1763593991505,6.18146803,136.94,136.9,1.89]
[1763593991692,0.7,136.95,136.9,1.89]
[1763593991693,6.88146803,136.95,136.9,1.89]
[1763593991892,6.88146803,136.95,136.9,1.22]
[1763593992110,6.88146803,136.95,136.91,0.67]
[1763593993515,6.88146803,136.94,136.88,7.72146803]
[1763593993718,6.18146803,136.93,136.88,2.21]
[1763593994014,6.18146803,136.91,136.88,1.54]
[1763593994208,19.14096,136.95,136.84,0.67]
[1763593994209,6.18146803,136.89,136.84,0.67]
[1763593994406,6.18146803,136.9,136.85,6.18146803]
[1763593994910,6.18146803,136.9,136.86,0.67]
[1763593995299,6.88146803,136.9,136.86,0.67]
[1763593995509,6.18146803,136.9,136.86,0.67]
[1763593996497,6.18146803,136.91,136.86,0.67]
[1763593996912,6.88146803,136.91,136.86,0.67]
[1763593997117,0.7,136.91,136.86,0.67]
[1763593997497,18.12096,136.93,136.87,6.18146803]
[1763593997716,6.88146803,136.94,136.88,6.18146803]
[1763593997912,6.18146803,136.95,136.89,6.85146803]
[1763593998312,1.46,136.97,136.88,6.18146803]
[1763593998313,6.18146803,136.93,136.88,6.18146803]
[1763593998594,6.18146803,136.93,136.89,1.76]
[1763593998914,10.72533859,136.92,136.89,1.76]
[1763593999089,11.42533859,136.92,136.85,0.67]
[1763593999294,10.72533859,136.9,136.85,1.43]
[1763593999520,11.42533859,136.91,136.85,12.15533859]
[1763593999935,10.72533859,136.89,136.85,0.67]
[1763594000097,10.72533859,136.88,136.83,0.65]
[1763594000294,10.72533859,136.89,136.83,11.37533859]
[1763594000494,10.72533859,136.9,136.85,10.72533859]
[1763594000702,10.72533859,136.91,136.85,10.72533859]
[1763594001015,10.72533859,136.9,136.86,0.65]
[1763594001515,11.43533859,136.91,136.86,0.65]
[1763594001696,11.43533859,136.91,136.86,11.37533859]
[1763594002301,11.43533859,136.91,136.86,0.65]
[1763594002804,10.72533859,136.89,136.85,1.76]
[1763594003116,10.72533859,136.89,136.84,11.37533859]
[1763594003300,10.72533859,136.89,136.85,0.65]
[1763594003500,11.43533859,136.9,136.85,0.65]
[1763594003909,1.76,136.93,136.85,0.65]
[1763594003910,10.72533859,136.89,136.85,0.65]
[1763594004219,10.72533859,136.9,136.84,12.48533859]
[1763594004421,13.19533859,136.92,136.86,10.72533859]
[1763594004603,12.48533859,136.93,136.87,10.72533859]
[1763594004793,11.43533859,136.94,136.88,13.13533859]
[1763594005400,10.72533859,136.93,136.88,13.13533859]
[1763594005619,11.43533859,136.94,136.88,13.13533859]
[1763594005921,10.72533859,136.92,136.88,1.76]
[1763594006104,19.88096,136.95,136.88,1.76]
[1763594006105,0.68,136.93,136.88,1.76]
[1763594006294,10.72533859,136.92,136.88,1.76]
[1763594006500,0.68,136.91,136.88,1.76]
[1763594006898,0.68,136.91,136.82,10.96]
[1763594006899,10.72533859,136.89,136.82,10.96]
[1763594007095,10.72533859,136.9,136.84,10.72533859]
[1763594007325,11.40533859,136.91,136.85,10.72533859]
[1763594007529,10.72533859,136.91,136.85,10.72533859]
[1763594007710,10.72533859,136.91,136.86,0.66]
[1763594008023,10.72533859,136.91,136.86,11.38533859]
[1763594008525,11.40533859,136.91,136.87,0.66]
[1763594008826,11.40533859,136.91,136.85,10.72533859]
[1763594009004,11.40533859,136.91,136.86,0.66]
[1763594010429,10.72533859,136.92,136.87,1.76]
[1763594010817,11.40533859,136.92,136.87,2.42]
[1763594011120,10.72533859,136.91,136.87,2.42]
[1763594011419,11.40533859,136.91,136.87,0.66]
[1763594011922,10.72533859,136.89,136.86,1.76]
[1763594012300,11.40533859,136.89,136.86,1.76]
[1763594012523,10.72533859,136.9,136.86,1.76]
[1763594012822,10.72533859,136.9,136.86,0.66]
[1763594013014,11.40533859,136.9,136.86,0.66]
[1763594013203,11.40533859,136.9,136.85,1.76]
[1763594013520,11.40533859,136.9,136.85,2.42]
[1763594014720,11.40533859,136.89,136.85,0.66]
[1763594015530,10.72533859,136.92,136.86,10.72533859]
[1763594015741,17.06496385,136.98,136.89,10.72533859]
[1763594015742,0.68,136.96,136.89,10.72533859]
[1763594015911,11.40533859,136.96,136.9,10.72533859]
[1763594016109,29.52629859,136.96,136.9,10.72533859]
[1763594016323,10.72533859,136.95,136.89,10.72533859]
[1763594016530,10.72533859,136.95,136.9,0.66]
[1763594016747,0.68,136.97,136.9,11.38533859]
[1763594016945,0.68,136.97,136.91,0.66]
[1763594016946,10.72533859,136.96,136.91,0.66]
[1763594017109,10.72533859,136.96,136.91,11.38533859]
[1763594017303,18.12096,136.99,136.91,11.38533859]
[1763594017304,0.68,136.99,136.92,12.48533859]
[1763594017505,0.1,137.01,136.95,10.72533859]
[1763594017506,10.72533859,137.0,136.95,10.72533859]
[1763594017958,0.1,137.01,136.96,13.14533859]
[1763594018248,0.1,137.01,136.98,10.72533859]
[1763594018411,0.1,137.01,137.0,10.72533859]
[1763594018754,0.1,137.01,137.0,12.48533859]
[1763594018921,0.1,137.01,137.0,13.14533859]
[1763594021111,0.1,137.01,136.97,0.66]
[1763594021310,0.1,137.01,136.98,2.42]
[1763594021929,0.1,137.01,136.98,0.66]
[1763594022121,0.1,137.01,136.98,2.42]
[1763594023311,0.1,137.01,136.98,13.14533859]
[1763594023535,18.22096,137.01,136.88,0.66]
[1763594023733,18.12096,136.96,136.88,0.66]
[1763594023934,10.72533859,136.91,136.87,0.74]
[1763594024142,1.76,136.96,136.87,0.74]
[1763594024143,18.12096,136.95,136.87,0.74]
[1763594024436,19.88096,136.96,136.87,0.74]
[1763594024643,10.72533859,136.91,136.87,0.74]
[1763594024835,10.72533859,136.9,136.87,0.08]
[1763594025339,10.72533859,136.91,136.87,0.74]
[1763594025513,10.72533859,136.9,136.87,0.74]
[1763594026255,10.72533859,136.95,136.89,10.72533859]
[1763594026551,10.72533859,136.95,136.9,13.14533859]
[1763594026843,1.76,136.96,136.91,0.66]
[1763594027142,10.72533859,136.95,136.91,0.66]
[1763594027330,1.76,136.96,136.91,0.66]
[1763594027516,12.48533859,136.96,136.91,0.66]
[1763594028013,10.72533859,136.95,136.91,0.66]
[1763594028445,10.72533859,136.94,136.91,0.66]
[1763594028940,1.76,136.96,136.91,0.66]
[1763594029137,28.84629859,136.98,136.92,10.72533859]
[1763594029333,10.72533859,136.99,136.93,12.26533859]
[1763594029835,10.72533859,137.0,136.94,11.38533859]
[1763594030038,11.06,137.01,136.94,11.38533859]
[1763594030241,10.82533859,137.01,136.95,11.38533859]
[1763594030427,10.82533859,137.01,136.96,1.76]
[1763594030628,10.72533859,137.0,136.96,2.42]
[1763594030837,0.1,137.01,136.97,0.66]
[1763594031036,10.72533859,137.0,136.97,0.66]
[1763594031238,10.72533859,136.99,136.96,1.76]
[1763594032042,4.98834788,137.01,136.96,2.42]
[1763594032218,10.72533859,136.99,136.96,2.42]
[1763594033231,10.82533859,137.01,136.97,0.66]
[1763594033641,0.1,137.01,136.97,0.66]
[1763594033948,10.82533859,137.01,136.97,0.66]
[1763594034332,10.82533859,137.01,136.96,1.76]
[1763594034333,10.72533859,137.0,136.96,1.76]
[1763594034533,10.72533859,137.0,136.96,2.42]
[1763594035231,10.72533859,137.0,136.97,0.66]
[1763594038344,10.72533859,136.98,136.93,0.66]
[1763594038821,10.72533859,136.98,136.94,0.66]
[1763594039127,1.76,137.0,136.94,0.66]
[1763594039319,10.72533859,136.98,136.94,0.66]
[1763594040426,10.82533859,137.01,136.95,12.48533859]
[1763594040623,0.1,137.01,136.97,10.72533859]
[1763594040935,0.1,137.01,136.98,10.72533859]
[1763594041131,0.1,137.01,136.96,11.38533859]
[1763594041338,0.1,137.01,136.97,11.38533859]
[1763594041543,10.82533859,137.01,136.98,0.66]
[1763594041731,10.82533859,137.01,136.96,0.66]
[1763594041934,10.72533859,137.0,136.96,0.66]
[1763594043043,10.72533859,136.99,136.95,1.76]
[1763594043246,10.72533859,136.98,136.95,1.76]
[1763594043553,18.22096,137.01,136.95,1.76]
[1763594043855,10.72533859,136.97,136.93,0.66]
[1763594044146,10.72533859,136.96,136.93,0.66]
[1763594044733,10.72533859,136.94,136.9,0.66]
[1763594044934,10.72533859,136.93,136.89,0.66]
[1763594045438,10.72533859,136.94,136.89,0.66]
[1763594045947,10.72533859,136.92,136.88,0.88]
[1763594046328,10.72533859,136.9,136.86,0.66]
[1763594046839,10.72533859,136.91,136.86,0.66]
[1763594047165,10.72533859,136.92,136.86,11.38533859]
[1763594047326,1.72,136.93,136.87,0.66]
[1763594047522,10.72533859,136.92,136.87,0.66]
[1763594047728,1.76,136.94,136.88,10.72533859]
[1763594047947,10.72533859,136.93,136.87,11.38533859]
[1763594048149,10.72533859,136.92,136.87,0.66]
[1763594048457,10.72533859,136.92,136.88,0.66]
[1763594048928,10.72533859,136.9,136.85,13.38]
[1763594049138,10.72533859,136.9,136.86,0.66]
[1763594049860,1.76,136.94,136.86,0.66]
[1763594050033,10.72533859,136.9,136.86,0.66]
[1763594051373,9.78882769,136.96,136.86,0.66]
[1763594051537,28.84629859,136.93,136.87,10.72533859]
[1763594051865,10.72533859,136.94,136.88,12.48533859]
[1763594052371,10.72533859,136.96,136.9,10.72533859]
[1763594052852,10.72533859,136.98,136.92,10.72533859]
[1763594053151,10.72533859,136.98,136.93,0.66]
[1763594054142,10.72533859,136.96,136.91,2.42]
[1763594054344,18.12096,136.99,136.92,0.66]
[1763594054659,10.72533859,136.97,136.92,0.66]
[1763594055061,1.76,136.98,136.91,1.76]
[1763594055062,10.72533859,136.95,136.91,1.76]
[1763594055564,10.72533859,136.95,136.91,2.42]
[1763594055758,10.72533859,136.96,136.91,1.76]
[1763594055960,10.72533859,136.97,136.92,0.66]
[1763594056164,19.88096,136.99,136.92,0.66]
[1763594056459,10.72533859,136.97,136.92,0.66]
[1763594057034,19.88096,136.99,136.92,0.66]
[1763594057371,10.72533859,136.97,136.92,0.66]
[1763594057962,19.88096,136.99,136.92,0.66]
[1763594058259,10.72533859,137.0,136.93,10.72533859]
[1763594058463,28.84629859,137.0,136.93,10.72533859]
[1763594058660,10.72533859,137.0,136.94,0.66]
[1763594058836,10.72533859,137.0,136.94,11.38533859]
[1763594059040,10.72533859,137.0,136.95,1.44]
[1763594059340,10.72533859,137.0,136.95,2.1]
[1763594059559,10.72533859,137.0,136.96,0.66]
[1763594060863,6.15348726,137.0,136.96,0.66]
[1763594061565,0.1,137.01,136.96,0.66]
[1763594061865,6.15348726,137.0,136.96,0.66]
[1763594062740,6.15348726,136.97,136.93,0.69]
[1763594063949,23.01867076,137.0,136.93,6.84348726]
[1763594064140,6.15348726,136.99,136.94,0.69]
[1763594065172,18.12096,137.0,136.94,0.69]
[1763594065378,24.27444726,137.0,136.94,6.84348726]
[1763594065579,6.15348726,136.99,136.94,0.69]
[1763594065747,6.15348726,136.99,136.95,0.69]
[1763594066252,6.15348726,137.0,136.95,0.69]
[1763594066563,24.27444726,137.0,136.95,0.69]
[1763594066751,24.27444726,137.0,136.94,6.15348726]
[1763594066752,6.15348726,136.98,136.93,1.58]
[1763594067075,6.15348726,136.98,136.94,0.72]
[1763594067366,6.15348726,136.99,136.94,0.72]
[1763594067747,6.15348726,136.98,136.94,0.72]
[1763594068761,6.15348726,136.97,136.94,0.72]
[1763594069094,4.90450672,136.99,136.94,0.72]
[1763594069245,6.15348726,136.97,136.94,0.72]
[1763594070159,11.05799398,136.99,136.94,6.87348726]
[1763594070483,6.15348726,136.99,136.94,6.87348726]
[1763594070775,6.15348726,136.99,136.95,0.72]
[1763594072380,24.27444726,137.0,136.95,0.72]
[1763594072753,6.15348726,136.99,136.95,0.72]
[1763594073277,6.15348726,136.98,136.95,0.72]
[1763594073448,6.15348726,136.97,136.93,1.58]
[1763594073974,6.15348726,136.97,136.93,2.3]
[1763594074962,6.15348726,136.96,136.93,2.3]
[1763594075379,6.15348726,136.97,136.94,0.72]
[1763594075684,6.15348726,136.95,136.88,27.90978769]
[1763594075888,6.15348726,136.94,136.9,0.72]
[1763594076059,1.76,136.96,136.9,0.72]
[1763594076266,6.15348726,136.94,136.9,0.72]
[1763594076563,6.15348726,136.95,136.9,0.72]
[1763594076755,18.12096,136.96,136.9,0.72]
[1763594076756,6.15348726,136.94,136.9,0.72]
[1763594077143,6.12847448,136.99,136.9,6.87348726]
[1763594077446,6.15348726,136.96,136.91,0.72]
[1763594077647,6.15348726,136.95,136.91,0.72]
[1763594077960,6.15348726,136.94,136.91,0.72]
[1763594078161,18.12096,136.97,136.91,0.72]
[1763594078347,18.12096,136.97,136.91,6.87348726]
[1763594078348,6.15348726,136.97,136.91,6.87348726]
[1763594078547,6.15348726,136.97,136.92,1.6]
[1763594078770,6.15348726,136.97,136.92,2.32]
[1763594078971,6.15348726,136.97,136.93,0.72]
[1763594079479,18.12096,136.98,136.93,0.72]
[1763594079480,6.15348726,136.96,136.93,0.72]
[1763594081895,6.15348726,136.95,136.92,1.6]
[1763594082251,6.15348726,136.94,136.92,1.6]
[1763594082567,6.15348726,136.94,136.9,0.72]
[1763594086861,6.15348726,136.95,136.9,6.87348726]
[1763594087271,6.15348726,136.95,136.9,6.15348726]
[1763594087463,6.15348726,136.95,136.91,0.72]
[1763594088380,6.15348726,136.96,136.91,0.72]
[1763594088799,4.90842309,136.97,136.92,6.15348726]
[1763594088959,6.15348726,136.99,136.93,7.43348726]
[1763594089281,6.15348726,137.0,136.94,6.87348726]
[1763594089658,6.15348726,137.0,136.95,0.72]
[1763594089966,0.1,137.01,136.95,0.72]
[1763594090160,6.15348726,137.0,136.95,0.72]
[1763594090361,0.1,137.01,136.95,6.87348726]
[1763594090557,0.1,137.01,136.95,0.72]
[1763594090766,0.1,137.01,136.96,3.28366988]
[1763594091184,0.1,137.01,136.97,0.7]
[1763594091485,2.68366988,137.01,136.97,0.7]
[1763594091982,2.58366988,137.0,136.97,0.7]
[1763594092365,18.22096,137.01,136.97,0.7]
[1763594092573,20.80462988,137.01,136.97,0.7]
[1763594092770,24.37375346,137.01,136.97,0.7]
[1763594094885,6.25279346,137.01,136.97,0.7]
[1763594095989,0.1,137.01,136.97,0.7]
[1763594096195,0.1,137.01,136.97,6.85279346]
[1763594096565,0.1,137.01,136.98,0.7]
[1763594096767,0.1,137.01,136.98,6.85279346]
[1763594096969,0.1,137.01,136.99,6.15279346]
[1763594097292,0.1,137.01,136.99,0.7]
[1763594100791,0.1,137.01,136.85,42.40880853]
[1763594100792,0.1,137.01,136.91,18.25909088]
[1763594100965,0.1,137.01,136.98,6.85279346]
[1763594101168,0.1,137.03,136.99,1.32]
[1763594101389,0.1,137.03,137.0,0.7]
[1763594102001,4.90835225,137.09,137.02,6.15279346]
[1763594102304,6.15279346,137.07,137.03,0.7]
[1763594102508,6.15279346,137.06,137.01,6.85279346]
[1763594102712,6.15279346,137.05,136.99,8.61279346]
[1763594102914,5.11166056,137.07,137.0,6.85279346]